Workbook

Sheet GOA Specs 2021
A1: Table 1. Plan Team recommended OFLs and ABCs for Groundfish in the Gulf of Alaska (metric tons) for 2022 and 2023. | J1: =NOW() -> 2021-11-29T10:44:55.090
D2: 2021 | F2: Catch | G2: Plan Team Rec 2022 | I2: Plan Team Rec 2023
A3: Species | B3: Area | C3: OFL | D3: ABC | E3: TAC | F3: 2021-11-06 | G3: OFL | H3: ABC | I3: OFL | J3: ABC
A4: Pollock | B4: State GHL | C4: n/a | D4: 2,643 | E4: n/a | G4: n/a | H4: 3,327 | I4: n/a | J4: 3,298
B5: W (610) | C5: n/a | D5: 18,477 | E5: 18,477 | F5: 18,112 | G5: n/a | H5: 23,720 | I5: n/a | J5: 23,511
B6: C (620) | C6: n/a | D6: 54,870 | E6: 54,870 | F6: 52,432 | G6: n/a | H6: 69,259 | I6: n/a | J6: 68,651
B7: C (630) | C7: n/a | D7: 24,320 | E7: 24,320 | F7: 23,079 | G7: n/a | H7: 30,053 | I7: n/a | J7: 29,789
B8: WYAK | C8: n/a | D8: 5,412 | E8: 5,412 | F8: 5,145 | G8: n/a | H8: 6,722 | I8: n/a | J8: 6,663
B9: Subtotal | C9: 123,455 | D9: =SUM(D4:D8) -> 105,722 | E9: =SUM(E4:E8) -> 103,079 | F9: =SUM(F5:F8) -> 98,768 | G9: 154,983 | H9: =SUM(H4:H8) -> 133,081 | I9: 153,097 | J9: 131,912
B10: EYAK/SEO | C10: 13,531 | D10: 10,148 | E10: 10,148 | F10: 1 | G10: 15,150 | H10: 11,363 | I10: 15,150 | J10: 11,363
B11: Total | C11: =C9+C10 -> 136,986 | D11: 115,870 | E11: 113,227 | F11: =SUM(F9:F10) -> 98,769 | G11: 170,133 | H11: 144,444 | I11: 168,247 | J11: 143,275
A12: Pacific Cod | B12: W | C12: n/a | D12: 7,986 | E12: 5,590 | F12: 3,792 | G12: n/a | H12: 7,285 | I12: n/a | J12: 6,933
B13: C | C13: n/a | D13: 13,656 | E13: 10,242 | F13: 8,258 | G13: n/a | H13: 14,474 | I13: n/a | J13: 13,775
B14: E | C14: n/a | D14: 1,985 | E14: 1,489 | F14: 222 | G14: n/a | H14: 2,284 | I14: n/a | J14: 2,174
B15: Total | C15: 28,977 | D15: =SUM(D12:D14) -> 23,627 | E15: =SUM(E12:E14) -> 17,321 | F15: =SUM(F12:F14) -> 12,272 | G15: 29,131 | H15: =SUM(H12:H14) -> 24,043 | I15: 27,715 | J15: 22,882
A16: Sablefish | B16: W | C16: n/a | D16: 3,224 | E16: 2,428 | F16: =1582+181 -> 1,763 | G16: n/a | H16: 3,727 | I16: n/a | J16: 3,951
B17: C | C17: n/a | D17: 9,527 | E17: 8,056 | F17: =5428+1123 -> 6,551 | G17: n/a | H17: 9,965 | I17: n/a | J17: 9,495
B18: WYAK | C18: n/a | D18: 3,451 | E18: 2,929 | F18: =2071+117 -> 2,188 | G18: n/a | H18: 3,437 | I18: n/a | J18: 3,159
B19: SEO | C19: n/a | D19: 5,273 | E19: 4,579 | F19: 3,613 | G19: n/a | H19: 5,665 | I19: n/a | J19: 5,398
B20: GOA Total1 | C20: n/a | D20: =SUM(D16:D19) -> 21,475 | E20: =SUM(E16:E19) -> 17,992 | F20: =SUM(F16:F19) -> 14,115 | G20: n/a | H20: =SUM(H16:H19) -> 22,794 | I20: n/a | J20: =SUM(J16:J19) -> 22,003
A21: Alaska-wide OFL and ABC2 | B21: AK Total | C21: 60,426 | D21: 29,588 | E21: n/a | G21: 40,432 | H21: 34,521 | I21: 42,520 | J21: 36,318
A22: Shallow-water Flatfish | B22: W | C22: n/a | D22: 24,151 | E22: 13,250 | F22: 26 | G22: n/a | H22: 21,256 | I22: n/a | J22: 22,464
B23: C | C23: n/a | D23: 28,082 | E23: 28,082 | F23: 1,654 | G23: n/a | H23: 25,305 | I23: n/a | J23: 26,743
B24: WYAK | C24: n/a | D24: 2,808 | E24: 2,808 | F24: 1 | G24: n/a | H24: 2,531 | I24: n/a | J24: 2,674
B25: EYAK/SEO | C25: n/a | D25: 1,123 | E25: 1,123 | F25: 1 | G25: n/a | H25: 1,518 | I25: n/a | J25: 1,605
B26: Total | C26: 68,841 | D26: =SUM(D22:D25) -> 56,164 | E26: =SUM(E22:E25) -> 45,263 | F26: =SUM(F22:F25) -> 1,682 | G26: 62,273 | H26: =SUM(H22:H25) -> 50,610 | I26: 65,676 | J26: =SUM(J22:J25) -> 53,486
A27: Deep-water Flatfish | B27: W | C27: n/a | D27: 225 | E27: 225 | F27: 1 | G27: n/a | H27: 256 | I27: n/a | J27: 256
B28: C | C28: n/a | D28: 1,914 | E28: 1,914 | F28: 79 | G28: n/a | H28: 2,139 | I28: n/a | J28: 2,105
B29: WYAK | C29: n/a | D29: 2,068 | E29: 2,068 | F29: 5 | G29: n/a | H29: 1,431 | I29: n/a | J29: 1,408
B30: EYAK/SEO | C30: n/a | D30: 1,719 | E30: 1,719 | F30: 4 | G30: n/a | H30: 2,082 | I30: n/a | J30: 2,049
B31: Total | C31: 7,040 | D31: =SUM(D27:D30) -> 5,926 | E31: =SUM(E27:E30) -> 5,926 | F31: =SUM(F27:F30) -> 89 | G31: 7,026 | H31: =SUM(H27:H30) -> 5,908 | I31: 6,920 | J31: =SUM(J27:J30) -> 5,818
A32: Rex Sole | B32: W | C32: n/a | D32: 3,013 | E32: 3,013 | F32: 14 | G32: n/a | H32: 2,981 | I32: n/a | J32: 3,222
B33: C | C33: n/a | D33: 8,912 | E33: 8,912 | F33: 269 | G33: n/a | H33: 12,076 | I33: n/a | J33: 13,054
B34: WYAK | C34: n/a | D34: 1,206 | E34: 1,206 | F34: 2 | G34: n/a | H34: 1,361 | I34: n/a | J34: 1,439
B35: EYAK/SEO | C35: n/a | D35: 2,285 | E35: 2,285 | F35: 0 | G35: n/a | H35: 2,723 | I35: n/a | J35: 2,879
B36: Total | C36: 18,779 | D36: =SUM(D32:D35) -> 15,416 | E36: =SUM(E32:E35) -> 15,416 | F36: =SUM(F32:F35) -> 285 | G36: 23,302 | H36: =SUM(H32:H35) -> 19,141 | I36: 25,049 | J36: =SUM(J32:J35) -> 20,594
A37: Arrowtooth Flounder | B37: W | C37: n/a | D37: 32,377 | E37: 14,500 | F37: 332 | G37: n/a | H37: 33,658 | I37: n/a | J37: 33,214
B38: C | C38: n/a | D38: 69,072 | E38: 69,072 | F38: 9,114 | G38: n/a | H38: 68,394 | I38: n/a | J38: 67,493
B39: WYAK | C39: n/a | D39: 8,380 | E39: 6,900 | F39: 47 | G39: n/a | H39: 6,707 | I39: n/a | J39: 6,619
B40: EYAK/SEO | C40: n/a | D40: 17,141 | E40: 6,900 | F40: 24 | G40: n/a | H40: 11,020 | I40: n/a | J40: 10,875
B41: Total | C41: 151,723 | D41: =SUM(D37:D40) -> 126,970 | E41: =SUM(E37:E40) -> 97,372 | F41: =SUM(F37:F40) -> 9,517 | G41: 143,100 | H41: =SUM(H37:H40) -> 119,779 | I41: 141,231 | J41: =SUM(J37:J40) -> 118,201
A42: Flathead Sole | B42: W | C42: n/a | D42: 14,209 | E42: 8,650 | F42: 106 | G42: n/a | H42: 14,755 | I42: n/a | J42: 14,708
B43: C | C43: n/a | D43: 20,826 | E43: 15,400 | F43: 555 | G43: n/a | H43: 22,033 | I43: n/a | J43: 21,962
B44: WYAK | C44: n/a | D44: 2,427 | E44: 2,427 | F44: 0 | G44: n/a | H44: 1,511 | I44: n/a | J44: 1,506
B45: EYAK/SEO | C45: n/a | D45: 1,915 | E45: 1,915 | F45: 0 | G45: n/a | H45: 1,876 | I45: n/a | J45: 1,870
B46: Total | C46: 47,982 | D46: =SUM(D42:D45) -> 39,377 | E46: =SUM(E42:E45) -> 28,392 | F46: =SUM(F42:F45) -> 661 | G46: 48,928 | H46: =SUM(H42:H45) -> 40,175 | I46: 48,757 | J46: =SUM(J42:J45) -> 40,046
A47: Pacific ocean perch | B47: W | C47: n/a | D47: 1,643 | E47: 1,643 | F47: 1,654 | G47: n/a | H47: 2,602 | I47: n/a | J47: 2,523
B48: C | C48: n/a | D48: 27,429 | E48: 27,429 | F48: 24,809 | G48: n/a | H48: 30,806 | I48: n/a | J48: 29,869
B49: WYAK | C49: n/a | D49: 1,705 | E49: 1,705 | F49: 1,663 | G49: n/a | H49: 1,409 | I49: n/a | J49: 1,366
B50: W/C/WYAK | C50: 36,563 | D50: =SUM(D47:D49) -> 30,777 | E50: =SUM(E47:E49) -> 30,777 | F50: =SUM(F47:F49) -> 28,126 | G50: 41,470 | H50: =SUM(H47:H49) -> 34,817 | I50: 40,211 | J50: =SUM(J47:J49) -> 33,758
B51: SEO | C51: 6,414 | D51: 5,400 | E51: 5,400 | F51: 0 | G51: 4,110 | H51: 3,451 | I51: 3,985 | J51: 3,346
B52: Total | C52: =C50+C51 -> 42,977 | D52: 36,177 | E52: =SUM(E50:E51) -> 36,177 | F52: =SUM(F50:F51) -> 28,126 | G52: =SUM(G50:G51) -> 45,580 | H52: 38,268 | I52: =SUM(I50:I51) -> 44,196 | J52: =SUM(J50:J51) -> 37,104
A53: Northern Rockfish | B53: W | C53: n/a | D53: 2,023 | E53: 2,023 | F53: 708 | G53: n/a | H53: 1,944 | I53: n/a | J53: 1,859
B54: C | C54: n/a | D54: 3,334 | E54: 3,334 | F54: 1,670 | G54: n/a | H54: 3,202 | I54: n/a | J54: 3,061
B55: E | C55: n/a | D55: 1 | E55: 0 | F55: 0 | G55: n/a | H55: 0 | I55: n/a | J55: 0
B56: Total | C56: 6,396 | D56: =SUM(D53:D55) -> 5,358 | E56: =SUM(E53:E55) -> 5,357 | F56: =SUM(F53:F55) -> 2,378 | G56: 6,143 | H56: =SUM(H53:H55) -> 5,146 | I56: 5,874 | J56: =SUM(J53:J55) -> 4,920
A57: Shortraker Rockfish | B57: W | C57: n/a | D57: 52 | E57: 52 | F57: 5 | G57: n/a | H57: 51 | I57: n/a | J57: 51
B58: C | C58: n/a | D58: 284 | E58: 284 | F58: 197 | G58: n/a | H58: 280 | I58: n/a | J58: 280
B59: E | C59: n/a | D59: 372 | E59: 372 | F59: 273 | G59: n/a | H59: 374 | I59: n/a | J59: 374
B60: Total | C60: 944 | D60: =SUM(D57:D59) -> 708 | E60: =SUM(E57:E59) -> 708 | F60: =SUM(F57:F59) -> 475 | G60: 940 | H60: =SUM(H57:H59) -> 705 | I60: 940 | J60: =SUM(J57:J59) -> 705
A61: Dusky Rockfish | B61: W | C61: n/a | D61: 270 | E61: 270 | F61: 146 | G61: n/a | H61: 269 | I61: n/a | J61: 259
B62: C | C62: n/a | D62: 4,548 | E62: 4,548 | F62: 2,748 | G62: n/a | H62: 4,534 | I62: n/a | J62: 4,373
B63: WYAK | C63: n/a | D63: 468 | E63: 468 | F63: 30 | G63: n/a | H63: 427 | I63: n/a | J63: 412
B64: EYAK/SEO | C64: n/a | D64: 103 | E64: 103 | F64: 0 | G64: n/a | H64: 142 | I64: n/a | J64: 137
B65: Total | C65: 8,655 | D65: =SUM(D61:D64) -> 5,389 | E65: =SUM(E61:E64) -> 5,389 | F65: =SUM(F61:F64) -> 2,924 | G65: 8,614 | H65: =SUM(H61:H64) -> 5,372 | I65: 8,146 | J65: =SUM(J61:J64) -> 5,181
A66: Rougheye and Blackspotted Rockfish | B66: W | C66: n/a | D66: 168 | E66: 168 | F66: 21 | G66: n/a | H66: 184 | I66: n/a | J66: 182
B67: C | C67: n/a | D67: 456 | E67: 456 | F67: 175 | G67: n/a | H67: 235 | I67: n/a | J67: 234
B68: E | C68: n/a | D68: 588 | E68: 588 | F68: 185 | G68: n/a | H68: 369 | I68: n/a | J68: 365
B69: Total | C69: 1,456 | D69: =SUM(D66:D68) -> 1,212 | E69: =SUM(E66:E68) -> 1,212 | F69: =SUM(F66:F68) -> 381 | G69: 947 | H69: =SUM(H66:H68) -> 788 | I69: 937 | J69: =SUM(J66:J68) -> 781
A70: Demersal shelf rockfish | B70: Total | C70: 405 | D70: 257 | E70: 257 | F70: 105 | G70: 422 | H70: 268 | I70: 422 | J70: 268
A71: Thornyhead Rockfish | B71: W | C71: n/a | D71: 352 | E71: 352 | F71: 42 | G71: n/a | H71: 352 | I71: n/a | J71: 352
B72: C | C72: n/a | D72: 910 | E72: 910 | F72: 99 | G72: n/a | H72: 910 | I72: n/a | J72: 910
B73: E | C73: n/a | D73: 691 | E73: 691 | F73: 133 | G73: n/a | H73: 691 | I73: n/a | J73: 691
B74: Total | C74: 2,604 | D74: =SUM(D71:D73) -> 1,953 | E74: =SUM(E71:E73) -> 1,953 | F74: =SUM(F71:F73) -> 274 | G74: 2,604 | H74: =SUM(H71:H73) -> 1,953 | I74: 2,604 | J74: =SUM(J71:J73) -> 1,953
A75: Other Rockfish | B75: W/C | C75: n/a | D75: 940 | E75: 940 | F75: 1,060 | G75: n/a | H75: 940 | I75: n/a | J75: 940
B76: WYAK | C76: n/a | D76: 369 | E76: 369 | F76: 119 | G76: n/a | H76: 370 | I76: n/a | J76: 370
B77: EYAK/SEO | C77: n/a | D77: 2,744 | E77: 300 | F77: 40 | G77: n/a | H77: 2,744 | I77: n/a | J77: 2,744
B78: Total | C78: 5,320 | D78: =SUM(D75:D77) -> 4,053 | E78: =SUM(E75:E77) -> 1,609 | F78: =SUM(F75:F77) -> 1,219 | G78: 5,320 | H78: =SUM(H75:H77) -> 4,054 | I78: 5,320 | J78: =SUM(J75:J77) -> 4,054
A79: Atka mackerel | B79: Total | C79: 6,200 | D79: 4,700 | E79: 3,000 | F79: 940 | G79: 6,200 | H79: 4,700 | I79: 6,200 | J79: 4,700
A80: Big Skate | B80: W | C80: n/a | D80: 758 | E80: 758 | F80: 142 | G80: n/a | H80: 591 | I80: n/a | J80: 591
B81: C | C81: n/a | D81: 1,560 | E81: 1,560 | F81: 752 | G81: n/a | H81: 1,482 | I81: n/a | J81: 1,482
B82: E | C82: n/a | D82: 890 | E82: 890 | F82: 193 | G82: n/a | H82: 794 | I82: n/a | J82: 794
B83: Total | C83: 4,278 | D83: =SUM(D80:D82) -> 3,208 | E83: =SUM(E80:E82) -> 3,208 | F83: =SUM(F80:F82) -> 1,087 | G83: 3,822 | H83: =SUM(H80:H82) -> 2,867 | I83: 3,822 | J83: =SUM(J80:J82) -> 2,867
A84: Longnose Skate | B84: W | C84: n/a | D84: 158 | E84: 158 | F84: 26 | G84: n/a | H84: 151 | I84: n/a | J84: 151
B85: C | C85: n/a | D85: 1,875 | E85: 1,875 | F85: 447 | G85: n/a | H85: 2,044 | I85: n/a | J85: 2,044
B86: E | C86: n/a | D86: 554 | E86: 554 | F86: 417 | G86: n/a | H86: 517 | I86: n/a | J86: 517
B87: Total | C87: 3,449 | D87: =SUM(D84:D86) -> 2,587 | E87: =SUM(E84:E86) -> 2,587 | F87: =SUM(F84:F86) -> 890 | G87: 3,616 | H87: =SUM(H84:H86) -> 2,712 | I87: 3,616 | J87: =SUM(J84:J86) -> 2,712
A88: Other Skates | B88: GOA-wide | C88: 1,166 | D88: 875 | E88: 875 | F88: 632 | G88: 1,311 | H88: 984 | I88: 1,311 | J88: 984
A89: Sharks | B89: GOA-wide | C89: 5,006 | D89: 3,755 | E89: 3,755 | F89: 1,639 | G89: 5,006 | H89: 3,755 | I89: 5,006 | J89: 3,755
A90: Octopuses | B90: GOA-wide | C90: 1,307 | D90: 980 | E90: 980 | F90: 51 | G90: 1,307 | H90: 980 | I90: 1,307 | J90: 980
A91: TOTAL | C91: =C11+C15+C21+C26+C31+C36+C41+C46+C52+C56+C60+C65+C69+C70+C74+C78+C79+C83+C87+C88+C89+C90 -> 610,917 | D91: =D11+D15+D21+D26+D31+D36+D41+D46+D52+D56+D60+D65+D69+D70+D74+D78+D79+D83+D87+D88+D89+D90 -> 484,150 | E91: =E11+E15+E20+E26+E31+E36+E41+E46+E52+E56+E60+E65+E69+E70+E74+E78+E79+E83+E87+E88+E89+E90 -> 407,976 | F91: =F11+F15+F20+F26+F31+F36+F41+F46+F52+F56+F60+F65+F69+F70+F74+F78+F79+F83+F87+F88+F89+F90 -> 178,511 | G91: =G11+G15+G21+G26+G31+G36+G41+G46+G52+G56+G60+G65+G69+G70+G74+G78+G79+G83+G87+G88+G89+G90 -> 616,157 | H91: =H11+H15+H21+H26+H31+H36+H41+H46+H52+H56+H60+H65+H69+H70+H74+H78+H79+H83+H87+H88+H89+H90 -> 511,173 | I91: =I11+I15+I21+I26+I31+I36+I41+I46+I52+I56+I60+I65+I69+I70+I74+I78+I79+I83+I87+I88+I89+I90 -> 615,816 | J91: =J11+J15+J21+J26+J31+J36+J41+J46+J52+J56+J60+J65+J69+J70+J74+J78+J79+J83+J87+J88+J89+J90 -> 511,584
A92: Sources: 2021 OFLs, ABCs, and TACs, as well as 2022 OFLs and ABCs, are from harvest specifications adopted by the Council in December 2020. 2021 catches through November 6, 2021 from AKR Catch Accounting.
A94: 1 The sablefish ABC total for the GOA is not included in the grand total.
A95: 2 The Alaska-wide sablefish OFL and ABC are included in the grand total.
